bitfinex-derivatives/quotes_ETHF0:USTF0_20260116
["timestamp","ask_amount","ask_price","bid_price","bid_amount"]
[1768581421290,3.7618091,3284.1,3282.5,1.58667443]
[1768581421484,3.7618091,3284.1,3282.5,0.00252986]
[1768581422683,3.6095291,3283.9,3282.5,0.00252986]
[1768581423697,3.6095291,3283.7,3282.5,0.00252986]
[1768581427397,3.6095291,3283.7,3282.1,1.58414457]
[1768581427596,3.7618291,3283.7,3282.0,1.58414457]
[1768581427991,3.7618291,3283.7,3282.1,1.58414457]
[1768581428298,3.7618291,3283.7,3282.2,1.58414457]
[1768581428499,3.7618291,3283.7,3282.2,1.58762745]
[1768581428695,3.6095291,3283.3,3281.9,3.85447225]
[1768581429791,3.6095291,3283.3,3281.9,3.85843178]
[1768581431801,3.6095291,3283.3,3282.0,3.85447225]
[1768581432895,3.7618491,3283.3,3282.0,3.85447225]
[1768581437600,3.7618491,3283.3,3282.1,3.85447225]
[1768581438589,3.6095291,3283.0,3282.1,3.85447225]
[1768581438799,3.6095291,3283.0,3281.9,0.00395953]
[1768581440200,3.7618591,3283.0,3281.5,1.58414457]
[1768581440404,3.7618591,3283.0,3281.3,1.58414457]
[1768581441305,3.7618591,3283.0,3281.3,1.58762277]
[1768581441904,8.1853736,3283.8,3281.9,3.47389096]
[1768581441905,0.1523,3283.7,3281.9,3.47389096]
[1768581442205,0.1523,3283.7,3281.9,5.05803553]
[1768581443304,0.1523,3283.7,3282.0,1.58414457]
[1768581444901,3.42784968,3283.8,3282.0,5.05803553]
[1768581445107,3.42784968,3283.8,3282.1,5.05803553]
[1768581445502,3.42784968,3283.8,3282.2,1.58414457]
[1768581446308,1.75,3283.9,3282.3,1.58414457]
[1768581448011,1.75,3283.9,3282.5,1.58414457]
[1768581448604,0.15502221,3284.2,3282.5,1.58414457]
[1768581448800,1.75,3284.1,3282.5,1.58414457]
[1768581450716,1.75,3284.1,3282.6,5.18099465]
[1768581451106,1.75,3284.1,3282.6,1.58414457]
[1768581451609,1.75,3284.1,3282.6,5.18099465]
[1768581451813,1.75,3284.1,3282.8,1.58414457]
[1768581452009,1.75,3284.1,3282.7,1.58414457]
[1768581452719,1.75,3284.1,3282.6,5.18099465]
[1768581454314,1.75,3284.0,3282.6,5.18099465]
[1768581454505,1.75,3284.0,3282.7,1.58414457]
[1768581454711,1.75,3284.0,3282.6,5.18099465]
[1768581455109,0.00274221,3284.2,3282.9,1.58414457]
[1768581456221,3.46159526,3284.2,3282.9,1.58414457]
[1768581456423,3.46159526,3284.2,3282.6,1.58414457]
[1768581456720,3.46159526,3284.2,3282.2,3.59685008]
[1768581456721,3.46159526,3284.2,3282.5,1.58414457]
[1768581461029,3.46159526,3284.2,3282.6,2.52]
[1768581461523,3.46159526,3284.2,3282.6,4.10414457]
[1768581462221,3.46159526,3284.2,3282.7,1.58414457]
[1768581465117,0.00274221,3284.2,3282.9,1.58414457]
[1768581466918,0.00274221,3284.2,3282.9,4.10414457]
[1768581468716,3.46159526,3284.2,3282.5,1.58414457]
[1768581469114,3.46159526,3284.2,3282.3,3.59685008]
[1768581469115,3.30657305,3284.0,3282.6,1.58414457]
[1768581469321,3.30657305,3284.0,3282.5,1.58414457]
[1768581469519,3.30657305,3284.0,3282.3,3.59685008]
[1768581470726,3.30657305,3284.0,3282.3,5.73677048]
[1768581472127,3.30657305,3284.0,3282.3,3.59685008]
[1768581472529,1.749,3283.9,3282.3,3.59685008]
[1768581472831,1.749,3283.9,3282.4,3.41921928]
[1768581473532,0.00274221,3284.2,3282.4,3.41921928]
[1768581473720,0.00274221,3284.2,3282.9,3.41921928]
[1768581473919,0.00274221,3284.2,3283.1,3.41921928]
[1768581474126,0.00274221,3284.2,3283.2,3.41921928]
[1768581474434,1.31596389,3284.4,3283.2,3.41921928]
[1768581475329,1.31875905,3284.4,3283.2,3.41921928]
[1768581476934,3.56610172,3285.4,3283.0,2.2922504]
[1768581476935,3.56610172,3285.4,3283.6,3.41921928]
[1768581477233,3.71832172,3285.4,3283.1,3.41921928]
[1768581477540,3.71832172,3285.4,3283.2,40.8]
[1768581478038,3.72092882,3285.4,3283.2,44.22209024]
[1768581480538,5.30901372,3285.3,3283.2,44.22209024]
[1768581481235,0.0086951,3285.4,3283.5,3.57152928]
[1768581481437,0.0086951,3285.4,3283.8,3.41921928]
[1768581481637,0.0086951,3285.4,3283.8,3.57150928]
[1768581482238,3.56001372,3284.5,3283.2,0.00287096]
[1768581482441,4.796,3284.4,3283.2,0.00287096]
[1768581482744,5.46127372,3284.5,3283.2,0.00287096]
[1768581483432,5.30901372,3284.5,3283.2,0.00287096]
[1768581484345,3.56001372,3284.4,3283.2,0.00287096]
[1768581489048,1.749,3284.5,3283.2,0.00287096]
[1768581490640,1.749,3284.5,3283.2,3.42209024]
[1768581493750,1.749,3284.5,3283.2,0.00287096]
[1768581493951,5.30901372,3284.5,3283.2,0.00287096]
[1768581494244,3.56001372,3284.4,3283.2,0.00287096]
[1768581501162,3.56001372,3284.1,3282.3,5.55913968]
[1768581502055,3.56001372,3284.1,3282.3,5.56133933]
[1768581503554,3.56001372,3284.1,3282.3,2.14212005]
[1768581504054,3.56001372,3284.1,3282.4,3.59668335]
[1768581504254,1.90026,3284.5,3282.7,3.59668335]
[1768581504455,5.36674951,3284.5,3282.7,3.59668335]
[1768581504658,3.46648951,3284.4,3282.7,3.59668335]
[1768581509454,3.46648951,3284.4,3282.5,2.1399204]
[1768581509661,3.61875951,3284.4,3282.5,2.1399204]
[1768581509861,3.61875951,3284.4,3282.6,2.1399204]
[1768581510866,3.31813487,3284.2,3282.6,2.1399204]
[1768581511068,3.31813487,3284.2,3282.5,2.1399204]
[1768581511259,3.47041487,3284.2,3282.5,2.1399204]
[1768581511459,3.31813487,3284.0,3282.5,2.1399204]
[1768581511864,3.47042487,3284.0,3282.4,2.1399204]
[1768581512260,3.31813487,3283.8,3282.4,2.1399204]
[1768581512456,3.31813487,3283.8,3282.3,0.00219965]
[1768581513369,3.31813487,3283.6,3282.3,0.00219965]
[1768581513577,3.31813487,3283.5,3282.3,0.00219965]
[1768581515967,3.31813487,3284.1,3282.3,3.56316744]
[1768581516168,5.06613487,3284.1,3282.3,3.56316744]
[1768581518460,3.31813487,3284.0,3282.3,3.56316744]
[1768581519974,3.31813487,3283.8,3282.3,0.00219965]
[1768581522072,3.47043487,3283.8,3282.3,0.00219965]
[1768581522268,3.31813487,3283.8,3282.3,0.00219965]
[1768581523282,1.23856482,3283.0,3282.3,0.00219965]
[1768581523472,2.98656482,3283.1,3281.5,7.31953261]
[1768581524380,1.75186975,3283.1,3281.7,1.23856482]
[1768581524574,0.00386975,3283.1,3282.0,1.23856482]
[1768581526071,0.00386975,3283.1,3281.9,1.23856482]
[1768581526677,0.00386975,3283.1,3281.8,2.1399204]
[1768581526877,0.00386975,3283.1,3281.9,1.23856482]
[1768581527667,0.00386975,3283.1,3281.8,2.1399204]
[1768581527870,0.00386975,3283.1,3281.7,3.37848522]
[1768581528071,0.00386975,3283.1,3281.7,2.1399204]
[1768581528479,0.00386975,3283.1,3281.8,2.52]
[1768581529584,1.23856482,3282.4,3281.8,2.52]
[1768581529780,1.23856482,3282.1,3281.5,0.00309075]
[1768581529976,1.23856482,3282.4,3281.5,0.00309075]
[1768581531373,3.31813487,3282.5,3281.5,0.00309075]
[1768581532287,3.71099803,3283.0,3281.5,0.00309075]
[1768581535088,6.75899803,3283.0,3281.5,0.00309075]
[1768581535389,3.55866803,3282.9,3281.5,0.00309075]
[1768581540195,3.71100803,3282.9,3281.5,0.00309075]
[1768581543095,3.55866803,3282.7,3281.5,0.00309075]
[1768581543291,3.55866803,3282.5,3280.8,0.15243]
[1768581543497,0.00386975,3283.1,3281.7,3.26749309]
[1768581543894,0.00386975,3283.1,3281.7,44.06749309]
[1768581544288,0.00386975,3283.1,3281.7,3.27041414]
[1768581546788,3.71093803,3284.4,3282.1,1.78400627]
[1768581546993,9.12380329,3284.3,3282.2,3.26749309]
[1768581547309,8.35366803,3284.3,3282.2,3.26749309]
[1768581547690,3.55866803,3284.2,3282.2,3.26749309]
[1768581547893,3.56249476,3284.2,3282.2,3.26749309]
[1768581553405,1.23798838,3283.8,3282.3,1.23798838]
[1768581554299,1.23798838,3283.8,3282.3,1.39034838]
[1768581554506,4.80048314,3284.2,3282.7,1.23798838]
[1768581554803,1.23798838,3284.0,3282.5,1.23798838]
[1768581555107,1.23798838,3283.8,3282.5,1.23798838]
[1768581558703,1.23798838,3284.0,3282.5,1.23798838]
[1768581561116,3.56249476,3284.2,3282.8,1.23798838]
[1768581561413,5.30949476,3284.2,3283.1,1.23798838]
[1768581561615,1.75082673,3284.2,3283.1,1.23798838]
[1768581561802,0.00382673,3284.2,3283.3,1.23798838]
[1768581563212,4.8027198,3285.2,3283.1,3.43888744]
[1768581563514,1.747,3285.1,3283.5,3.43888744]
[1768581563715,1.747,3285.1,3283.9,1.23798838]
[1768581563910,2.98498838,3285.1,3283.7,1.23798838]
[1768581564117,4.8027198,3285.2,3283.7,1.23798838]
[1768581564315,1.23798838,3285.0,3283.7,1.23798838]
[1768581564618,1.23798838,3285.0,3283.5,4.67687582]
[1768581564911,1.23798838,3284.8,3283.5,4.67687582]
[1768581565125,1.23798838,3284.6,3283.1,1.23798838]
[1768581565414,3.56473142,3284.9,3283.0,3.43888744]
[1768581566309,3.56473142,3284.9,3282.8,40.95234]
[1768581566704,3.56473142,3284.9,3282.8,0.15234]
[1768581567110,3.71697142,3284.9,3282.8,0.15234]
[1768581568715,3.30146265,3284.4,3282.5,2.1399204]
[1768581569017,3.30146265,3284.0,3282.1,0.15237]
[1768581569315,3.30146265,3283.9,3282.1,40.95237]
[1768581571417,3.30146265,3283.9,3282.1,43.0922904]
[1768581572619,3.30146265,3283.9,3282.1,40.8]
[1768581572814,3.30146265,3283.9,3281.8,5.56353197]
[1768581573219,3.30146265,3283.9,3281.8,46.36353197]
[1768581573414,3.30146265,3283.6,3281.8,2.1399204]
[1768581573632,3.30146265,3283.6,3281.7,0.15531105]
[1768581574014,3.30146265,3283.6,3281.7,40.95531105]
[1768581575624,3.30146265,3283.6,3281.7,44.37892262]
[1768581575824,0.1523,3283.8,3281.8,3.42361157]
[1768581576320,3.30146265,3283.9,3282.0,3.42361157]
[1768581576527,1.746,3283.8,3282.0,3.42361157]
[1768581577217,3.30146265,3283.7,3282.0,3.42361157]
[1768581577416,3.30146265,3283.7,3281.8,3.24438]
[1768581577917,3.30146265,3283.7,3281.8,0.15238]
[1768581578116,1.23741258,3283.6,3281.8,0.15238]
[1768581578319,3.30146265,3283.5,3281.7,40.80292105]
[1768581578526,3.30146265,3283.5,3281.7,0.00292105]
[1768581582531,3.30146265,3283.5,3281.7,3.57892262]
[1768581582731,1.746,3283.4,3282.0,3.42361157]
[1768581584128,5.04746265,3283.4,3281.8,40.8]
[1768581584435,3.30146265,3283.3,3281.7,0.15531105]
[1768581585324,1.746,3283.3,3281.8,4.66102415]
[1768581586039,1.746,3283.3,3281.9,3.42361157]
[1768581586328,1.746,3283.6,3282.0,3.42361157]
[1768581587531,1.746,3283.6,3282.2,4.66102415]
[1768581590123,5.04746265,3284.1,3282.4,4.66102415]
[1768581590322,3.45372265,3284.6,3282.8,1.23741258]
[1768581590526,2.52136555,3284.5,3282.8,1.23741258]
[1768581590729,1.746,3284.5,3283.2,1.23741258]
[1768581591925,1.746,3284.5,3283.0,0.15233]
[1768581592534,1.746,3284.5,3283.1,40.8]
[1768581593423,3.45707681,3284.5,3283.1,40.8]
[1768581593624,3.45707681,3284.5,3282.6,2.1399204]
[1768581593833,3.45707681,3284.5,3282.6,5.2609204]
[1768581594121,3.45707681,3284.5,3282.7,44.09578399]
[1768581594326,1.746,3284.6,3283.0,3.44811399]
[1768581598940,1.746,3284.6,3283.1,3.44811399]
[1768581602738,3.45707681,3284.5,3283.1,0.15233]
[1768581604060,3.45707681,3284.4,3282.7,8.57770439]
[1768581604352,3.45707681,3284.4,3282.6,5.2819204]
[1768581604653,3.45707681,3284.4,3282.6,46.0819204]
[1768581605948,3.45707681,3284.4,3282.6,2.1399204]
[1768581606142,3.45707681,3284.4,3282.6,5.43570439]
[1768581606939,3.45707681,3285.1,3282.9,3.29578399]
[1768581607147,3.45707681,3284.9,3282.9,3.29578399]
[1768581608447,3.45707681,3284.9,3282.9,3.44812399]
[1768581610058,3.45707681,3284.9,3282.9,5.58804439]
[1768581610247,3.45707681,3284.9,3283.0,3.29578399]
[1768581612153,3.45707681,3284.9,3283.2,3.29578399]
[1768581614351,3.45707681,3284.5,3283.1,2.1399204]
[1768581614560,3.45707681,3284.5,3282.9,2.69612408]
[1768581614757,3.45707681,3284.5,3282.8,2.1399204]
[1768581616260,3.45707681,3284.1,3282.8,2.1399204]
[1768581616462,3.45707681,3284.0,3282.8,2.1399204]
[1768581617563,3.45707681,3284.0,3282.9,2.1399204]
[1768581619266,3.45707681,3284.0,3283.0,2.1399204]
[1768581619970,1.745,3284.1,3283.0,2.1399204]
[1768581625464,1.745,3284.1,3283.0,3.3774299]
[1768581626458,3.56286933,3285.0,3283.3,1.2375095]
[1768581626664,0.77600075,3284.9,3283.3,1.2375095]
[1768581626860,3.56286933,3284.9,3283.3,3.3774299]
[1768581627169,1.2375095,3284.7,3283.3,3.3774299]
[1768581627968,1.744,3285.0,3283.6,1.2375095]
[1768581628169,0.77588053,3284.9,3283.6,1.2375095]
[1768581628370,2.9815095,3285.0,3283.6,1.2375095]
[1768581628569,0.77583956,3284.9,3283.6,1.2375095]
[1768581628770,2.9815095,3285.0,3283.6,1.2375095]
[1768581628970,0.77583929,3284.9,3283.6,1.2375095]
[1768581629173,2.9815095,3285.0,3283.6,1.2375095]
[1768581629371,0.77582312,3284.9,3283.6,1.2375095]
[1768581629571,2.9815095,3285.0,3283.6,1.2375095]
[1768581629777,0.77583281,3284.9,3283.6,1.2375095]
[1768581629967,2.9815095,3285.0,3283.6,1.2375095]
[1768581630167,0.77583281,3284.9,3283.6,1.2375095]
[1768581630368,2.9815095,3285.0,3283.6,1.2375095]
[1768581630569,0.77581706,3284.9,3283.6,1.2375095]
[1768581630884,1.2375095,3284.9,3283.4,1.2375095]
[1768581631876,1.2375095,3284.6,3283.3,2.1399204]
[1768581632078,1.2375095,3284.3,3283.1,2.1399204]
[1768581636886,3.30997945,3284.5,3283.1,2.1399204]
[1768581637083,4.54748895,3284.5,3283.1,2.1399204]
[1768581638678,0.15225,3284.8,3283.3,1.2375095]
[1768581638880,1.3897595,3284.8,3283.3,1.2375095]
[1768581639181,1.2375095,3284.5,3283.2,2.1399204]
[1768581640385,4.54748895,3284.5,3283.2,2.1399204]
[1768581641182,4.54748895,3284.5,3283.1,2.1399204]
[1768581641693,1.2375095,3284.2,3282.9,2.1399204]
[1768581642096,1.2375095,3284.2,3283.0,2.1399204]
[1768581642786,3.30997945,3284.4,3283.0,3.3774299]
[1768581643791,3.30997945,3284.4,3283.0,2.1399204]
[1768581644094,4.54748895,3284.2,3283.0,2.1399204]
[1768581645387,4.54748895,3284.2,3282.9,2.1399204]
[1768581648595,3.30997945,3284.2,3282.9,2.1399204]
[1768581648795,4.54748895,3284.2,3282.9,2.1399204]
[1768581651096,4.54748895,3284.2,3283.0,1.2375095]
[1768581651601,1.2375095,3284.2,3283.0,1.2375095]
[1768581653200,1.2375095,3284.4,3283.0,1.2375095]
[1768581653502,1.2375095,3284.4,3283.0,3.3774299]
[1768581654601,1.2375095,3284.5,3283.0,2.1399204]
[1768581654802,4.77890413,3284.5,3282.9,3.3774299]
[1768581655499,3.54139463,3284.4,3282.9,3.3774299]
[1768581655901,4.77890413,3284.2,3282.9,3.3774299]
[1768581656102,1.89626,3284.6,3282.9,3.3774299]
[1768581656299,1.2375095,3284.4,3282.9,2.1399204]
[1768581656510,1.2375095,3284.1,3282.6,2.1399204]
[1768581657202,3.54139463,3284.3,3282.8,1.2375095]
[1768581657800,4.77890413,3284.3,3282.8,1.2375095]
[1768581659198,1.89626,3284.6,3283.3,1.2375095]
[1768581662811,1.89626,3284.6,3283.1,1.2375095]
[1768581663415,5.43765463,3284.6,3283.1,1.2375095]
[1768581664706,5.43765463,3284.6,3282.8,46.28711007]
[1768581664906,5.43765463,3284.6,3283.1,1.2375095]
[1768581665913,5.43765463,3284.6,3282.8,46.28711007]
[1768581666118,5.43765463,3284.6,3283.1,1.2375095]
[1768581666418,1.2375095,3284.4,3283.1,2.1399204]
[1768581668425,1.2375095,3284.1,3282.9,2.1399204]
[1768581668626,1.2375095,3284.1,3283.0,2.1399204]
[1768581669325,3.54139463,3284.4,3283.0,3.3774299]
[1768581669525,2.9815095,3284.6,3283.0,6.72461957]
[1768581669725,0.78927527,3284.5,3283.1,2.1399204]
[1768581669932,0.78927527,3284.4,3283.1,2.1399204]
[1768581670127,2.9815095,3284.6,3283.1,2.1399204]
[1768581670333,0.78927537,3284.5,3283.1,2.1399204]
[1768581670532,0.78927537,3284.4,3283.1,2.1399204]
[1768581670728,1.2375095,3284.6,3283.1,2.1399204]
[1768581670936,0.78940354,3284.5,3283.1,2.1399204]
[1768581671136,0.78940354,3284.4,3283.1,2.1399204]
[1768581671338,1.2375095,3284.6,3283.1,3.3774299]
[1768581671522,0.7895225,3284.5,3283.1,3.3774299]
[1768581671727,0.7895225,3284.4,3283.1,3.3774299]
[1768581671926,1.2375095,3284.6,3283.1,3.3774299]
[1768581672130,0.78952278,3284.5,3283.1,3.3774299]
[1768581672331,0.78952278,3284.4,3283.1,3.3774299]
[1768581672535,1.2375095,3284.6,3283.1,3.3774299]
[1768581672733,0.79131891,3284.5,3283.1,3.3774299]
[1768581672934,0.79131891,3284.4,3283.1,3.3774299]
[1768581673133,1.2375095,3284.6,3283.1,3.3774299]
[1768581673329,0.79131927,3284.5,3283.1,3.3774299]
[1768581673532,0.79131927,3284.4,3283.1,3.3774299]
[1768581673734,1.2375095,3284.3,3283.0,2.1399204]
[1768581674437,1.2375095,3283.7,3282.8,2.1399204]
[1768581674834,1.2375095,3283.7,3282.4,2.69612408]
[1768581674835,1.2375095,3283.4,3282.5,2.1399204]
[1768581675035,4.77890413,3283.7,3282.3,2.1399204]
[1768581675541,4.77890413,3283.7,3282.2,42.9399204]
[1768581675735,3.54139463,3283.6,3282.2,42.9399204]
[1768581675933,4.77890413,3283.6,3282.2,42.9399204]
[1768581676131,1.2375095,3283.3,3282.2,42.9399204]
[1768581676337,1.2375095,3283.3,3282.2,40.8]
[1768581676937,1.2375095,3283.3,3282.0,5.3319204]
[1768581677239,3.54139463,3283.5,3282.0,46.1319204]
[1768581677832,3.54139463,3283.5,3282.0,42.9399204]
[1768581678343,1.2375095,3283.4,3282.0,40.8]
[1768581678542,4.77890413,3283.4,3282.0,40.8]
[1768581678738,4.77890413,3283.4,3281.9,3.3774299]
[1768581678940,3.54139463,3283.3,3281.9,3.3774299]
[1768581679246,1.2375095,3283.1,3281.7,42.94284145]
[1768581679538,1.2375095,3283.1,3281.7,44.18035095]
[1768581679737,1.2375095,3282.5,3281.7,0.00292105]
[1768581680044,0.00293956,3282.5,3281.7,0.00292105]
[1768581681344,0.00293956,3282.5,3281.9,1.2375095]
[1768581681544,0.15232,3283.4,3281.9,1.2375095]
[1768581682243,1.2375095,3283.2,3281.7,3.3159731]
[1768581682550,1.2375095,3282.9,3281.7,0.00292105]
[1768581683336,3.29465836,3283.2,3281.9,1.2375095]
[1768581683529,0.00235792,3283.2,3281.9,1.2375095]
[1768581684348,0.00235792,3283.2,3281.7,3.3159731]
[1768581684642,0.00235792,3283.2,3282.2,1.2375095]
[1768581684841,1.2375095,3283.1,3281.7,3.3159731]
[1768581685042,1.2375095,3283.1,3281.7,0.00292105]
[1768581685431,3.29230044,3283.1,3281.7,0.00292105]
[1768581692542,0.00235792,3283.2,3281.8,3.44885586]
[1768581698353,0.00235792,3283.2,3282.0,3.44885586]
[1768581698656,0.00235792,3283.2,3282.1,3.44885586]
[1768581699055,3.4851892,3283.9,3282.2,3.44885586]
[1768581699249,1.743,3284.1,3282.4,3.44885586]
[1768581699451,1.743,3284.1,3282.4,44.24885586]
[1768581699851,1.743,3284.1,3282.5,3.44885586]
[1768581700046,0.00315537,3284.1,3282.7,3.44885586]
[1768581700251,0.00315537,3284.1,3282.9,3.44885586]
[1768581701654,0.00315537,3284.1,3282.7,3.224]
[1768581702359,0.00315537,3284.1,3282.6,2.1399204]
[1768581705358,0.00315537,3284.1,3282.4,40.8]
[1768581705359,3.4851892,3283.9,3282.4,40.8]
[1768581705662,3.4851892,3283.9,3282.3,8.81877626]
[1768581705960,3.4851892,3283.9,3282.3,49.61877626]
[1768581706459,3.4851892,3283.9,3282.3,46.38877626]
[1768581706658,3.4851892,3283.9,3282.3,49.62077626]
[1768581707468,0.00315537,3284.1,3282.4,3.44885586]
[1768581707661,0.00315537,3284.1,3282.5,3.44885586]
[1768581710653,0.00315537,3284.1,3282.5,3.37861566]
[1768581710854,0.00315537,3284.1,3282.7,3.44885586]
[1768581711963,0.00315537,3284.1,3283.0,3.32999219]
[1768581712162,3.35730169,3285.1,3283.2,3.32999219]
[1768581712352,0.7888139,3285.0,3283.2,3.32999219]
[1768581712558,3.35730169,3285.1,3283.2,3.32999219]
[1768581712762,0.78868803,3285.0,3283.2,3.32999219]
[1768581713061,0.002705,3285.0,3283.2,3.32999219]
[1768581713260,3.36000669,3285.0,3283.3,3.247]
[1768581713464,3.36000669,3285.0,3283.2,3.32999219]
[1768581713764,3.36000669,3285.0,3283.3,3.246]
[1768581714768,3.36000669,3285.0,3283.2,3.32999219]
[1768581714971,3.36000669,3285.0,3283.3,3.245]
[1768581716967,3.36000669,3285.0,3283.3,6.57499219]
[1768581718669,3.36000669,3285.0,3283.3,3.32999219]
[1768581719863,3.35730169,3284.8,3283.3,3.32999219]
[1768581721166,3.35730169,3284.6,3282.8,6.56899219]
[1768581721368,3.35730169,3284.6,3282.8,3.32999219]
[1768581721673,3.35730169,3284.4,3282.8,3.32999219]
[1768581722472,3.50957169,3284.4,3282.8,3.32999219]
[1768581722769,3.50957169,3284.4,3282.6,2.1399204]
[1768581725474,3.50957169,3284.4,3282.7,2.1399204]
[1768581725769,1.742,3284.7,3282.8,3.32999219]
[1768581725972,3.35730169,3284.6,3283.0,3.32999219]
[1768581726175,3.50956169,3284.6,3283.0,3.32999219]
[1768581727871,3.35730169,3284.3,3282.7,2.1399204]
[1768581728074,3.35730169,3284.3,3282.6,5.46991259]
[1768581731079,3.35730169,3284.3,3282.7,2.1399204]
[1768581736080,3.35730169,3284.3,3282.9,2.1399204]
[1768581739286,3.35730169,3284.3,3282.8,2.1399204]
[1768581740095,3.35730169,3284.0,3282.8,2.1399204]
[1768581740300,1.23869526,3283.7,3282.5,4.83604448]
[1768581740500,1.23869526,3283.7,3282.5,2.1399204]
[1768581741190,3.35730169,3284.0,3282.5,2.1399204]
[1768581742294,3.35730169,3284.0,3282.4,2.1399204]
[1768581742694,3.35730169,3284.0,3282.5,2.1399204]
[1768581742896,0.15228,3284.1,3282.6,5.69264025]
[1768581743095,0.15228,3284.1,3282.6,3.55271985]
[1768581743298,3.6784295,3284.1,3282.6,3.55271985]
[1768581743504,3.5261495,3284.0,3282.5,2.1399204]
[1768581746109,0.15228,3284.1,3282.6,3.55271985]
[1768581746303,0.15228,3284.1,3282.6,5.69264025]
[1768581746497,0.15228,3284.1,3282.7,3.55271985]
[1768581747305,1.3899514,3284.1,3282.7,3.55271985]
[1768581748801,1.2376714,3284.1,3282.7,3.55271985]
[1768581750608,1.2376714,3283.9,3282.7,3.55271985]
[1768581752009,1.2376714,3283.7,3282.6,2.1399204]
[1768581753304,1.2376714,3283.7,3282.5,2.1399204]
[1768581755615,1.2376714,3283.7,3282.2,3.58529699]
[1768581756418,1.2376714,3283.5,3282.2,3.58529699]
[1768581757206,1.2376714,3283.3,3282.2,3.58529699]
[1768581757405,1.2376714,3283.3,3282.0,2.69612408]
[1768581757609,1.2376714,3283.3,3282.0,6.28142107]
[1768581758909,1.2376714,3283.4,3282.0,6.28142107]
[1768581759507,1.2376714,3283.4,3282.1,3.58529699]
[1768581760213,1.2376714,3283.5,3282.3,3.58529699]
[1768581760609,3.27889465,3284.2,3282.5,3.58529699]
[1768581760816,1.2376714,3284.0,3282.5,3.58529699]
[1768581761016,1.2376714,3283.9,3282.5,3.58529699]
[1768581762217,1.2376714,3283.7,3282.5,3.58529699]
[1768581763215,1.2376714,3283.7,3282.3,1.2376714]
[1768581764119,1.2376714,3283.7,3282.3,4.82296839]
[1768581764717,3.43117465,3284.2,3282.4,3.58529699]
[1768581764919,1.2376714,3283.8,3282.4,3.58529699]
[1768581765818,1.2376714,3283.8,3282.4,4.82296839]
[1768581766725,3.43117465,3284.2,3282.5,3.58529699]
[1768581766920,1.2376714,3284.0,3282.6,4.82296839]
[1768581767822,1.2376714,3283.8,3282.6,3.58529699]
[1768581768919,3.43117465,3284.2,3282.6,4.82296839]
[1768581769120,2.03961804,3284.1,3282.6,4.82296839]
[1768581769326,0.80194664,3284.0,3282.6,4.82296839]
[1768581769522,1.2376714,3284.1,3282.6,4.82296839]
[1768581769723,0.80211032,3284.0,3282.6,4.82296839]
[1768581770026,1.2376714,3284.1,3282.6,4.82296839]
[1768581770229,1.2376714,3284.1,3282.8,1.2376714]
[1768581772122,1.2376714,3284.1,3282.7,3.58529699]
[1768581772437,1.2376714,3284.1,3282.7,4.82296839]
[1768581772624,3.27889465,3284.5,3282.7,4.82296839]
[1768581772824,1.2376714,3284.2,3282.7,4.82296839]
[1768581773221,4.51656605,3284.5,3282.9,4.52193682]
[1768581773417,0.80173372,3284.4,3282.9,4.52193682]
[1768581773618,4.51656605,3284.5,3282.9,3.28426542]
[1768581773828,1.2376714,3284.3,3282.9,4.52193682]
[1768581774025,1.2376714,3284.3,3282.9,3.28426542]
[1768581774720,1.2376714,3284.0,3282.6,3.93379548]
[1768581775120,1.2376714,3284.0,3282.6,7.2180609]
[1768581776326,1.2376714,3284.0,3282.7,3.28426542]
[1768581776829,1.2376714,3284.2,3282.8,1.2376714]
[1768581777031,1.2376714,3284.2,3282.9,3.28426542]
[1768581777227,1.2376714,3284.4,3283.0,1.2376714]
[1768581777621,1.2376714,3284.4,3283.1,3.28426542]
[1768581778028,1.741,3284.6,3283.4,1.2376714]
[1768581778332,4.60750032,3284.9,3283.5,1.2376714]
[1768581778732,1.2376714,3284.7,3283.3,45.32193682]
[1768581779232,1.2376714,3284.7,3283.3,4.52193682]
[1768581779427,1.2376714,3284.7,3283.3,3.28426542]
[1768581779732,1.2376714,3284.7,3283.4,40.8]
[1768581781333,4.60750032,3284.9,3283.4,45.32193682]
[1768581781529,0.002705,3285.0,3283.9,1.2376714]
[1768581782531,0.002705,3285.0,3283.7,1.2376714]
[1768581782729,0.002705,3285.0,3283.8,3.28426542]
[1768581783335,1.2403764,3285.0,3283.8,3.28426542]
[1768581784526,1.2376714,3284.8,3283.8,3.28426542]
[1768581785835,1.2403764,3285.0,3283.8,3.28426542]
[1768581786336,0.002705,3285.0,3283.8,3.28426542]
[1768581787033,0.002705,3285.0,3283.9,1.2376714]
[1768581787446,1.2403764,3285.0,3283.8,3.28426542]
[1768581788441,1.2403764,3285.0,3283.5,1.2376714]
[1768581788645,1.2403764,3285.0,3283.7,3.314]
[1768581789540,0.002705,3285.0,3283.7,7.83593682]
[1768581789741,0.002705,3285.0,3283.8,3.28426542]
[1768581790441,0.002705,3285.0,3283.8,4.52193682]
[1768581791436,1.2403764,3285.0,3283.8,4.52193682]
[1768581792240,0.002705,3285.0,3283.8,4.52193682]
[1768581792442,0.002705,3285.0,3283.8,3.28426542]
[1768581793237,1.2376714,3284.9,3283.8,3.28426542]
[1768581793441,1.2376714,3284.9,3283.8,6.60526542]
[1768581793637,0.002705,3285.0,3283.8,4.5586714]
[1768581793838,0.002705,3285.0,3283.8,6.60526542]
[1768581794042,0.002705,3285.0,3283.8,7.84293682]
[1768581794435,0.002705,3285.0,3283.8,6.60526542]
[1768581794632,1.2376714,3284.9,3283.8,3.28426542]
[1768581794835,1.2376714,3284.9,3283.7,3.324]
[1768581795242,1.23225397,3283.8,3283.2,2.69612408]
[1768581795439,1.2376714,3284.0,3282.9,9.4577295]
[1768581795744,1.2376714,3284.3,3283.0,42.0376714]
[1768581796036,3.36982892,3284.6,3283.2,1.2376714]
[1768581796242,3.52477392,3285.0,3283.4,1.2376714]
[1768581796443,3.52477392,3285.0,3283.6,1.2376714]
[1768581796645,1.2376714,3284.9,3283.6,1.2376714]
[1768581797249,1.2376714,3284.9,3283.4,4.52193682]
[1768581798344,1.2376714,3284.9,3283.4,3.28426542]
[1768581798546,3.52477392,3285.0,3283.5,1.2376714]
[1768581798734,1.2376714,3284.9,3283.5,1.2376714]
[1768581799149,3.52477392,3285.0,3283.5,1.2376714]
[1768581799443,1.2376714,3284.9,3283.5,4.52193682]
[1768581799649,0.154945,3285.0,3283.5,3.28426542]
[1768581799848,1.2376714,3284.9,3283.5,4.52193682]
[1768581800543,1.2376714,3284.9,3283.5,3.28426542]
[1768581800744,1.2376714,3284.8,3283.5,4.52193682]
[1768581802948,0.154945,3285.0,3283.5,4.52193682]
[1768581803249,1.2376714,3284.9,3283.5,4.52193682]
[1768581804761,0.002705,3285.0,3283.9,1.2376714]
[1768581806647,0.002705,3285.0,3284.1,1.2376714]
[1768581806961,0.002705,3285.0,3284.1,1.2398869]
[1768581809352,0.002705,3285.0,3284.1,3.38766117]
[1768581811056,0.006088,3285.4,3284.1,3.38766117]